[Event "Israeli Team-ch 2023"]
[Site "Petah Tikva"]
[Date "2023.02.03"]
[Round "5.28"]
[White "Kuprijanov, Anatoly"]
[Black "Levin, Guy"]
[Result "0-1"]
[ECO "D25"]
[WhiteElo "2270"]
[BlackElo "2391"]
[Annotator "TA"]
[PlyCount "64"]
[EventDate "2023.01.13"]
[EventCountry "ISR"]
[SourceTitle "playchess.com"]
[Source "ChessBase"]
[SourceQuality "1"]
[TimeControl "40/5400+30:1800+30"]

{[%evp 9,64,39,36,29,35,27,25,34,68,22,39,10,27,14,18,0,0,-68,-72,-80,-75,-151,-148,-163,-164,-191,-156,-161,0,0,0,0,0,0,0,0,0,0,0,0,-4,-6,-10,-1743,-1782,-1360,-1332,-1464,-1458,-29991,-682,-29988,-29981,-29980,-29981,-29980,-29981]} 1. d4 {[%emt 0:04:36]} d5 {[%emt 0:00:06]} 2. c4 {[%emt 0:01:07]} dxc4 {[%emt 0:00:09]} 3. Nf3 {[%emt 0:00:20]} Nf6 {[%emt 0:00:07]} 4. e3 {[%emt 0:00:05]} b5 {[%emt 0:00:04]} 5. a4 {[%emt 0:01:07]} b4 {[%emt 0:00:08]} 6. Bxc4 {[%emt 0:00:07] D25: Queen's Gambit Accepted: 4 e3: sidelines and 4...Bg4.} e6 {[%emt 0:00:05]} 7. O-O {[%emt 0:08:02]} Be7 {[%emt 0:00:21]} 8. Nbd2 {[%emt 0:00:21][%cal Bb1d2,Bd2e4,Be4g5][%mdl 32] White has an edge.} Nbd7 {[%emt 0:01:51]} 9. Qe2 {[%emt 0:07:18]} (9. Bb5 $14) 9... O-O {[%emt 0:00:29]} 10. e4 {[%emt 0:00:27][%cal Be3e4,Be4e5][%mdl 32]} Bb7 {[%emt 0:01:17]} 11. e5 {[%emt 0:00:24]} Nd5 {[%emt 0:00:15]} 12. Ne4 {[%emt 0:00:11]} c5 {[%emt 0:02:00]} 13. Bd3 {[%emt 0:12:58]} (13. Nxc5 $11 Nxc5 14. dxc5) 13... cxd4 $15 {[%emt 0:13:58]} 14. Neg5 {[%emt 0:10:38]} g6 {[%emt 0:05:10] [#]} 15. Qe4 $146 {[%emt 0:11:55] [#]} ({White should play} 15. Rd1) ({Predecessor:} 15. Ne4 Qb8 16. Bh6 Nxe5 17. Nxe5 Qxe5 18. f4 Qb8 19. Bxf8 Kxf8 20. g3 Qd8 21. Rfc1 {0-1 Potapov,A (2401)-Nabaty,T (2622) Pardubice op rapid 27th 2016 (3)}) 15... Nc5 $1 $17 {[%emt 0:08:20]} 16. Qh4 {[%emt 0:00:04][%csl Gg5][%cal Rh4h7]} h5 {[%emt 0:00:28]} (16... Nxd3 $2 17. Qxh7#) 17. Rd1 {[%emt 0:03:59] [#]} Ne3 $1 {[%emt 0:20:42][%mdl 512]} 18. Bxe3 {[%emt 0:06:33]} Bxf3 {[%emt 0:00:10]} (18... dxe3 $19 19. Bxg6 fxg6 20. Rxd8 Raxd8 21. fxe3 (21. Qxb4 $2 exf2+ 22. Kh1 Bxg5 $19) 21... Ne4) 19. gxf3 $11 {[%emt 0:00:03] aiming for Bc4.} dxe3 {[%emt 0:00:13]} 20. Bxg6 $1 {[%emt 0:00:08][%mdl 64] Discovered Attack} fxg6 {[%emt 0:02:47]} 21. Rxd8 {[%emt 0:00:05]} Raxd8 {[%emt 0:00:40]} 22. fxe3 {[%emt 0:03:20]} (22. Qxb4 $2 e2 23. Qe1 Bxg5 24. Qxe2 Nd3 $19) 22... Rxf3 {[%emt 0:01:10] ...Rf5 is the strong threat.} (22... Rf5 $5 23. f4 $8 (23. Qxb4 $2 {loses.} Rxg5+ 24. Kh1 Nd3 $19) 23... Nd3 $11) 23. Qc4 $1 {[%emt 0:07:56]} (23. Qxb4 $2 {perishes.} Bxg5 24. Rf1 Bxe3+ 25. Kg2 Rxf1 26. Kxf1 Rd2 $19) 23... Bxg5 {[%emt 0:01:25]} 24. Kg2 {[%emt 0:00:05]} Rxe3 {[%emt 0:14:44] And now ...Rd2+ would win.} 25. Qxc5 {[%emt 0:00:04]} Rd2+ {[%emt 0:00:07]} 26. Kf1 $2 {[%emt 0:08:52][%mdl 8192] This move loses the game for White.} (26. Kh1 $11) 26... Rf3+ $19 {[%emt 0:02:16]} ({And not} 26... Rxb2 27. Qc8+ Kf7 28. Kg1 Rxe5 29. Qc7+ Kf6 30. Qd8+ Kg7 31. Qc7+ Kf6 32. Qd8+ Kg7 33. Qc7+ Kf6 $11) 27. Ke1 {[%emt 0:00:15]} Rxh2 {[%emt 0:00:30]} 28. Qc8+ {[%emt 0:00:15]} Kg7 {[%emt 0:00:21] ( -> ...Bh4+)} 29. Qa6 {[%emt 0:02:18]} Bh4+ {[%emt 0:08:17]} 30. Kd1 {[%emt 0:00:04]} Rff2 {[%emt 0:00:08] Black mates.} 31. Qxa7+ {[%emt 0:00:25]} Kh6 {[%emt 0:00:17][%cal Rf2f1]} 32. Qe3+ {[%emt 0:00:27]} Bg5 {[%emt 0:00:17] Magnificent play by Levin!   Weighted Error Value: White=0.66/Black=0.39} 0-1

[Event "Israeli Team-ch 2023"]
[Site "Petah Tikva"]
[Date "2023.02.03"]
[Round "5.30"]
[White "Rahmilevitz, Anton"]
[Black "Iliaguev, Nisim"]
[Result "0-1"]
[ECO "C00"]
[WhiteElo "2250"]
[BlackElo "2390"]
[Annotator "TA"]
[PlyCount "164"]
[EventDate "2023.01.13"]
[EventCountry "ISR"]
[SourceTitle "playchess.com"]
[Source "ChessBase"]
[SourceQuality "1"]
[TimeControl "40/5400+30:1800+30"]

{[%evp 9,164,-10,-6,-12,-14,-30,-9,-46,-14,-22,-22,-28,-37,-35,1,-58,-42,-45,-36,-44,-52,-37,-31,-91,-96,-125,-123,-199,-202,-245,-155,-146,-103,-179,-122,-167,-125,-104,-68,-198,-188,-318,-315,-312,-291,-293,-316,-311,-223,-223,-208,-227,-225,-216,-107,-137,-147,-227,-164,-170,-171,-158,-177,-206,-187,-185,-91,-75,-52,-57,-55,-48,-20,-19,-19,-34,-25,-25,-12,-55,-60,-135,-52,-227,-214,-346,-252,-254,-252,-248,-232,-228,-197,-179,-175,-204,-208,-470,-468,-666,-668,-525,-216,-184,-8,-853,-287,-274,-275,-380,-362,-333,-258,-295,-289,-272,-266,-313,-296,-364,-358,-1087,-1027,-29969,-29971,-29970,-29971,-29975,-29973,-29973,-29974,-29974,-29975,-29975,-29976,-29978,-29979,-29979,-29980,-29980,-29981,-29981,-29982,-29982,-29983,-29983,-29984,-29985,-29986,-29987,-29988,-29987,-29987,-29990,-29991,-29995,-29996]} 1. e4 {[%emt 0:01:02]} e6 {[%emt 0:10:52]} 2. d3 {[%emt 0:00:29]} d5 {[%emt 0:00:41]} 3. Qe2 {[%emt 0:00:29]} Nf6 {[%emt 0:02:21]} 4. Nf3 {[%emt 0:00:28]} Be7 {[%emt 0:02:09]} 5. g3 {[%emt 0:01:26]} c5 {[%emt 0:05:44]} 6. e5 {[%emt 0:01:40] C00: French: Unusual White 2nd moves.} Nfd7 {[%emt 0:00:11]} 7. Bg2 {[%emt 0:00:23]} Nc6 {[%emt 0:00:23]} 8. O-O {[%emt 0:00:23] The position is equal.} Qc7 {[%emt 0:00:59][%cal Rd7e5]} 9. Re1 {[%emt 0:02:46]} b5 {[%emt 0:01:33][%cal Bb7b5,Bb5b4][%mdl 32] [#]} 10. a4 $146 {[%emt 0:08:11]} ({Predecessor:} 10. Bf4 a5 11. Nc3 Qb6 12. a4 b4 13. Nb5 h6 14. h4 Ba6 15. c4 bxc3 16. bxc3 Bxb5 17. axb5 Qxb5 {0-1 Knoll,H (2338)-Kummer,H (2290) AUT-ch Vienna 2018 (7)}) 10... b4 {[%emt 0:03:12]} 11. Bf4 {[%emt 0:11:18]} a5 {[%emt 0:03:37]} 12. Nbd2 {[%emt 0:09:12]} (12. c4 $11 dxc4 13. dxc4) 12... Ba6 {[%emt 0:00:48]} (12... h6 $5 {[%cal Rg7g5]} 13. h4 Ba6 $15) 13. h4 {[%emt 0:03:26]} h6 {[%emt 0:02:10]} 14. c4 {[%emt 0:13:02]} bxc3 {[%emt 0:01:57]} 15. bxc3 {[%emt 0:00:01]} Rb8 {[%emt 0:02:51]} 16. h5 {[%emt 0:05:27]} (16. Nb1 $15) 16... O-O $17 {[%emt 0:14:10]} 17. g4 {[%emt 0:11:13]} Rb2 {[%emt 0:02:47]} 18. Kh1 {[%emt 0:02:46]} (18. Bg3 $17 {is a better defense.}) 18... Rfb8 $19 {[%emt 0:08:08]} 19. Rec1 {[%emt 0:07:19]} Nf8 {[%emt 0:10:39]} 20. Qe3 {[%emt 0:00:14]} Nh7 {[%emt 0:01:40] Black is more active.} 21. Ne1 {[%emt 0:11:23]} (21. Bf1 $17) 21... Qd7 {[%emt 0:04:52]} (21... Qd8 $1 $19 22. Kg1 d4 23. cxd4 Nxd4) 22. Qg3 {[%emt 0:01:39]} Bg5 {[%emt 0:04:11]} 23. Bxg5 {[%emt 0:03:59]} hxg5 {[%emt 0:00:16]} 24. Rd1 {[%emt 0:00:28] [#]} (24. Qe3 $1 $15) 24... Qc7 $1 {[%emt 0:01:17]} 25. c4 {[%emt 0:02:21]} (25. Ndf3 $142) 25... Qxe5 {[%emt 0:04:03]} (25... Nxe5 26. Nef3 f6 27. cxd5 $11) 26. cxd5 {[%emt 0:00:08] White is weak on the dark squares} exd5 {[%emt 0:00:17]} 27. Qxe5 Nxe5 {[%emt 0:00:01]} 28. Bxd5 {[%emt 0:02:21]} Nxg4 {[%emt 0:00:19]} (28... Nxd3 29. Nxd3 Bxd3 30. f3 $17) 29. Kg1 {[%emt 0:00:14]} Nhf6 {[%emt 0:00:56][%csl LRd5,LRh5]} 30. Bf3 {[%emt 0:00:10]} Ne5 {[%emt 0:00:34]} 31. Rac1 {[%emt 0:00:33]} Nxd3 {[%emt 0:04:37]} (31... Nxf3+ $19 32. Ndxf3 g4) 32. Nxd3 $17 {[%emt 0:00:12]} Bxd3 {[%emt 0:00:04]} 33. Rc3 {[%emt 0:01:27]} (33. Nc4 $17 {was worth a try.} Bxc4 34. Rxc4) 33... Ba6 {[%emt 0:04:48] Strongly threatening ...g4.} 34. Ne4 {[%emt 0:00:02]} Nxe4 {[%emt 0:00:36]} 35. Bxe4 {[%emt 0:00:01]} R2b4 {[%emt 0:01:29][%csl LRa4,LRe4]} 36. Bc2 {[%emt 0:00:01]} Rg4+ {[%emt 0:01:18]} 37. Kh2 {[%emt 0:00:10]} c4 {[%emt 0:01:05]} ({Not} 37... Be2 38. Rd5 $17) (37... Rc4 $19 {and Black stays clearly on top.} 38. Rxc4 Bxc4) 38. Rd5 {[%emt 0:00:39]} Rh4+ {[%emt 0:01:20]} 39. Kg3 {[%emt 0:00:02]} Rxh5 {[%emt 0:00:31]} 40. Rxa5 {[%emt 0:00:11]} Bc8 {[%emt 0:00:28] aiming for ...Rh3+.} 41. Rxc4 {[%emt 0:30:35]} Be6 {[%emt 0:06:18]} 42. Rc6 {[%emt 0:00:00]} Rh3+ {[%emt 0:03:15]} 43. Kg2 {[%emt 0:00:00][%cal Oc6e6] Black must now prevent Rxe6!} g4 {[%emt 0:00:13]} 44. Rac5 {[%emt 0:00:00]} Ra3 {[%emt 0:01:41]} 45. Ra6 {[%emt 0:00:00] [#]} (45. Re5 $15) 45... Kf8 {[%emt 0:01:46]} (45... g6 $1 $17 {...Bc8 would be deadly.} 46. Rd6 Rb2 47. Bxg6 Raa2) 46. Ra7 $2 {[%emt 0:00:00]} (46. Bf5 $1 $15) 46... g6 $19 {[%emt 0:02:25]} 47. a5 {[%emt 0:00:00]} (47. Rac7 {keeps fighting.}) 47... Kg7 {[%emt 0:02:33]} 48. Be4 {[%emt 0:00:00]} Rb2 {[%emt 0:01:39]} 49. Rc2 {[%emt 0:00:00] Repels Re2} Rb4 {[%emt 0:05:25]} 50. Bc6 {[%emt 0:00:00]} Rb8 {[%emt 0:03:46]} 51. Rd2 {[%emt 0:01:02]} Kf6 {[%emt 0:02:26]} 52. Bb7 {[%emt 0:01:16]} Ra1 {[%emt 0:02:54]} 53. a6 $2 {[%emt 0:01:01]} (53. f3 {was the only defense.}) 53... Rh8 {[%emt 0:00:12]} 54. Bc6 {[%emt 0:04:50]} (54. f3 $142 Rah1 55. Rd4) 54... g5 {[%emt 0:00:52] Hoping for ...Rhh1.} 55. f3 {[%emt 0:01:11]} gxf3+ {[%emt 0:00:39]} (55... Rah1 $142 {( -> ...R8h2+)} 56. Rd6 Ke5 57. Rxe6+ fxe6) 56. Bxf3 {[%emt 0:00:35]} Bc4 $2 {[%emt 0:01:15]} (56... Ke5 $19 {And now ...g4 would win.} 57. Re2+ Kf4 58. Re4+ Kf5) 57. Be4 $2 {[%emt 0:00:22][%mdl 8192]} (57. Rf2 $11 Ke5 58. Rc7 Bxa6 59. Rxf7) 57... Rxa6 $2 {[%emt 0:01:01]} ({Inferior is} 57... Bxa6 58. Rf2+ (58. Bd3 Ra8 $15) 58... Ke6 59. Bf5+ Ke5 60. Bd3 $11) (57... Bf1+ 58. Kf3 Ra3+ 59. Kf2 Rh2+ 60. Ke1 Re3+ 61. Kxf1 Rxd2) 58. Rc7 {[%emt 0:00:46]} Be6 {[%emt 0:00:19]} 59. Rf2+ {[%emt 0:00:05]} Ke5 {[%emt 0:00:22]} 60. Re2 {[%emt 0:00:52][%cal Oc7f7]} Kd6 {[%emt 0:00:51]} 61. Rcc2 {[%emt 0:00:01]} Rh4 {[%emt 0:00:23][%cal Oh4e4]} 62. Rcd2+ {[%emt 0:00:50]} Ke7 {[%emt 0:00:11]} 63. Rc2 {[%emt 0:00:32]} Kf6 {[%emt 0:00:12][%cal Oh4e4] Threatens to win with ...Rxe4!} 64. Rf2+ {[%emt 0:00:36]} Kg7 {[%emt 0:00:01]} 65. Bd3 $2 {[%emt 0:00:34]} (65. Bf3) 65... Ra3 {[%emt 0:00:45]} 66. Bf5 {[%emt 0:00:33]} Bd5+ {[%emt 0:00:22] Black mates.} 67. Kf1 {[%emt 0:00:00]} Re3 {[%emt 0:00:30][%cal Rh4h1]} 68. Rh2 {[%emt 0:00:30]} Rf3+ {[%emt 0:00:30]} 69. Rhf2 {[%emt 0:00:30]} Rh1+ {[%emt 0:00:30]} 70. Ke2 {[%emt 0:01:33]} Rxf2+ {[%emt 0:01:21]} 71. Kxf2 {[%emt 0:00:00] KRB-KRB} Rh2+ {[%emt 0:00:35]} 72. Kg3 {[%emt 0:00:00]} Rxc2 {[%emt 0:00:21]} 73. Bxc2 {[%emt 0:00:00] KB-KB} Be6 {[%emt 0:00:08]} 74. Be4 {[%emt 0:00:00]} f5 {[%emt 0:00:05][%cal Bf7f5,Bf5f4,Bf4f3][%mdl 32]} 75. Bf3 {[%emt 0:00:00]} Kf6 {[%emt 0:00:11]} 76. Bc6 {[%emt 0:00:00]} Ke5 {[%emt 0:00:12]} 77. Kf2 {[%emt 0:00:00]} f4 {[%emt 0:00:14]} 78. Bf3 {[%emt 0:00:00]} g4 {[%emt 0:00:05][%cal Bg5g4,Bg4g3][%mdl 32]} 79. Be2 {[%emt 0:00:00]} g3+ {[%emt 0:00:15]} 80. Kg2 {[%emt 0:00:00]} Kd4 {[%emt 0:00:25]} 81. Bf1 {[%emt 0:00:00]} Ke3 {[%emt 0:00:09]} 82. Kg1 {[%emt 0:00:00]} f3 {[%emt 0:00:25] Weighted Error Value: White=0.52/Black=0.40} 0-1

[Event "Israeli Team-ch 2023"]
[Site "Petah Tikva"]
[Date "2023.02.03"]
[Round "5.32"]
[White "Zanan, Evgeny"]
[Black "Tzidkiya, Yeshaayahu"]
[Result "1/2-1/2"]
[ECO "A40"]
[WhiteElo "2483"]
[BlackElo "2415"]
[Annotator "TA"]
[PlyCount "101"]
[EventDate "2023.01.13"]
[EventCountry "ISR"]
[SourceTitle "playchess.com"]
[Source "ChessBase"]
[SourceQuality "1"]
[TimeControl "40/5400+30:1800+30"]

{[%evp 13,101,44,42,44,44,35,53,21,8,2,8,-14,-17,-18,-4,-20,-2,-14,0,-14,-2,-5,10,-22,0,0,0,0,0,0,0,-9,-14,-19,194,203,208,193,237,237,236,214,247,261,281,272,687,237,1265,626,596,604,1659,1640,29987,0,0,-26,-35,-22,29,20,18,23,15,15,33,0,47,0,0,-53,-50,-42,18,12,9,20,77,78,105,27,36,25,51,0,0,0,91,0]} 1. e4 {[%emt 0:05:06]} c5 {[%emt 0:01:02]} 2. Nf3 {[%emt 0:00:07]} g6 {[%emt 0:00:06]} 3. c4 {[%emt 0:00:13]} Bg7 {[%emt 0:00:27]} 4. d4 {[%emt 0:00:06]} Qa5+ {[%emt 0:00:41]} 5. Nc3 {[%emt 0:07:10]} Nf6 {[%emt 0:00:53]} 6. Bd3 {[%emt 0:03:14]} cxd4 {[%emt 0:03:38]} 7. Nxd4 {[%emt 0:01:57]} Nc6 {[%emt 0:00:18]} 8. Nb3 {[%emt 0:02:20] A40: Unusual replies to 1 d4.} Qd8 {[%emt 0:01:51]} 9. O-O {[%emt 0:00:35]} O-O {[%emt 0:00:20]} 10. Re1 {[%emt 0:02:31] White is slightly better.} d6 {[%emt 0:00:15] [#]} 11. h3 $146 {[%emt 0:02:46]} ({Predecessor:} 11. Bg5 a5 12. Rb1 b6 13. Bf1 h6 14. Bh4 Nd7 15. Nd5 g5 16. Bg3 a4 17. Nc1 {½-½ Suba,M (2502)-Damljanovic,B (2608) Granada op 2007 (7)}) 11... a5 {[%emt 0:02:35]} 12. a4 {[%emt 0:07:03]} b6 {[%emt 0:08:40]} 13. Bf1 {[%emt 0:06:13]} Bb7 {[%emt 0:02:40]} 14. Be3 {[%emt 0:04:24]} Nd7 {[%emt 0:00:23]} 15. Nd4 {[%emt 0:06:36]} Nc5 {[%emt 0:08:22]} 16. Ndb5 {[%emt 0:04:18]} Nb4 {[%emt 0:05:37]} 17. Bg5 {[%emt 0:06:24]} Rb8 {[%emt 0:11:13]} 18. Ra3 {[%emt 0:02:59]} (18. Nd5 $5 {[%cal Rd5e7]} Nc6 19. Rb1 $11) 18... Bc6 {[%emt 0:09:19]} (18... f6 $5 {[%cal Rf6g5]} 19. Bh4 Rf7 $11) 19. Nd5 {[%emt 0:13:10]} Rb7 {[%emt 0:01:22]} (19... Bxb2 $2 20. Nxe7+ (20. Bxe7 Qd7 $16) 20... Kh8 21. Qd2 $18) 20. Qd2 {[%emt 0:01:47]} f6 {[%emt 0:13:02]} 21. Bh4 {[%emt 0:02:17]} Nba6 {[%emt 0:16:33]} 22. f4 {[%emt 0:02:27]} Bh6 {[%emt 0:03:02]} 23. Qd1 {[%emt 0:12:21]} (23. Nd4 {seems wilder.} Bxa4 24. Rxa4 Nxa4 25. Ne6) 23... e6 $2 {[%emt 0:09:07]} (23... Bxd5 $1 $11 24. Qxd5+ e6) 24. Nxf6+ $1 $18 {[%emt 0:00:13]} Rxf6 {[%emt 0:00:03]} 25. e5 {[%emt 0:00:12][%mdl 64] Pin} g5 {[%emt 0:00:01]} (25... Bxb5 $2 26. axb5 (26. exf6 Bxa4 27. Rxa4 Rf7 $16) 26... Nb4 27. exf6 $18) 26. exf6 {[%emt 0:00:28]} gxh4 {[%emt 0:00:03] [#]} 27. Qg4+ $1 {[%emt 0:03:26]} ({Weaker is} 27. Nxd6 Qxf6 28. Nxb7 Bxb7 $11) (27. Qxd6 $2 Qxd6 28. Nxd6 Rb8 $19) 27... Kh8 {[%emt 0:00:06]} 28. Qxh4 {[%emt 0:00:04]} Bf8 {[%emt 0:00:07]} 29. Rg3 {[%emt 0:00:16]} Qe8 $2 {[%emt 0:02:16]} (29... Qd7 30. Nd4 Ne4) 30. Nd4 $2 {[%emt 0:02:38]} (30. Be2 {Strongly threatening Bh5.} Ne4 31. Bh5) 30... Bd7 $2 {[%emt 0:00:36]} (30... Ne4) 31. Nf3 {[%emt 0:01:27]} (31. Be2 $142 Bxa4 32. Bh5) 31... Bc8 {[%emt 0:00:25]} 32. Ng5 {[%emt 0:00:52] Dodges Qf7} Nb4 {[%emt 0:00:20]} 33. f7 {[%emt 0:00:40]} Rxf7 {[%emt 0:00:04]} 34. Nxf7+ $2 {[%emt 0:00:15]} (34. Qh5 {mates} Rg7 35. Qxe8 Kg8 36. Qxc8 Nd7 37. Rxe6 Nc6 38. Rf6 {[%mdl 64] Decoy, Clearance} Nxf6 39. Qe6+ Kh8 40. Qxf6 Kg8 41. Ne6 {[%mdl 64] Pin, Double Attack} Kh8 42. Qxf8+ Rg8 43. Rxg8#) 34... Qxf7 $11 {[%emt 0:00:05]} 35. Be2 {[%emt 0:00:42] aiming for Bh5.} Be7 {[%emt 0:01:38]} 36. Qh6 {[%emt 0:00:17]} Bf8 {[%emt 0:00:27]} (36... Qf6 $142 37. Qxf6+ Bxf6) 37. Bh5 {[%emt 0:00:43]} Qf5 {[%emt 0:00:28]} (37... Bxh6 $2 38. Bxf7 Bg7 39. f5 $18) 38. Qg5 {[%emt 0:00:31]} Qxg5 {[%emt 0:00:10]} 39. fxg5 $40 {[%emt 0:00:11][%mdl 128] White is up to no good.} ({Reject} 39. Rxg5 Be7 40. Rxc5 bxc5 $17) 39... Bg7 {[%emt 0:00:22]} 40. Rf3 {[%emt 0:00:57]} (40. Rd1 $5 {[%cal Rd1d6]} Bb7 41. Rxd6 $11) 40... Nc2 {[%emt 0:01:16]} (40... Bxb2 {leads to mate.} 41. Rf8+ Kg7 42. Ref1 Bd4+ 43. Kh1) (40... Bb7 $11 {might be stronger.} 41. Rf7 Be4) 41. Ref1 {[%emt 0:02:15]} (41. Rd1 $14 Bb7 42. Rf4) 41... Bd7 {[%emt 0:02:09]} (41... Bd4+ $2 42. Kh1 Bg7 43. Rf8+ Bxf8 44. Rxf8+ Kg7 45. Rxc8 $18) 42. g6 {[%emt 0:02:56]} ({White should play} 42. b3 $11) 42... hxg6 {[%emt 0:05:20]} (42... Bxb2 43. Rf8+ Kg7 44. R1f7+ Kh6 45. Rxh7+ Kg5 46. h4+ Kxh4 47. g7 Bd4+ 48. Kh1) 43. Bxg6 {[%emt 0:00:05]} Nd4 {[%emt 0:00:03]} ({Black should try} 43... Bd4+ $1 $15 44. Kh1 Ne3) 44. Rf7 $1 {[%emt 0:02:25]} Nc6 {[%emt 0:01:16] A dynamic duo of knights.} 45. R7f4 {[%emt 0:06:40] Rh4+ is the strong threat.} Bh6 {[%emt 0:00:23]} (45... Bxb2 $11 {keeps the balance.} 46. Bc2 Ne5) 46. Rh4 $16 {[%emt 0:06:48]} Kg7 {[%emt 0:00:06]} 47. Bb1 {[%emt 0:03:12]} (47. Bc2 $16 {White wants to mate with Rg4+.} Ne5 48. b3) 47... Ne5 $11 {[%emt 0:09:08] Dodges Rg4+} 48. Rd1 {[%emt 0:00:33]} Nf7 {[%emt 0:01:56]} 49. Rf1 {[%emt 0:01:53][%cal Of1f7] And now Rxf7+! would win.} Ne5 {[%emt 0:00:12]} 50. Rd1 {[%emt 0:00:05]} Nf7 {[%emt 0:00:03] [#]} 51. Rf1 {[%emt 0:00:19] Black escapes into a draw.   Weighted Error Value: White=0.55/Black=0.35} (51. b3 $1 $16) 1/2-1/2

[Event "Israeli Team-ch 2023"]
[Site "Petah Tikva"]
[Date "2023.02.03"]
[Round "5.34"]
[White "Bronstein, Or"]
[Black "Aizenberg, Benny"]
[Result "1-0"]
[ECO "A58"]
[WhiteElo "2447"]
[BlackElo "2348"]
[Annotator "TA"]
[PlyCount "93"]
[EventDate "2023.01.13"]
[EventCountry "ISR"]
[SourceTitle "playchess.com"]
[Source "ChessBase"]
[SourceQuality "1"]
[TimeControl "40/5400+30:1800+30"]

{[%evp 9,92,10,40,65,50,57,47,42,40,48,33,33,32,32,35,34,31,39,39,23,38,38,39,54,35,56,58,53,62,51,48,55,62,64,53,50,71,62,82,92,97,91,102,91,143,140,150,156,164,108,114,0,144,0,139,106,104,103,106,106,89,74,423,404,608,580,273,548,712,674,1136,1036,3072,2703,29975,29976,29976,29977,29977,29977,29976,29977,29986,29985,29999]} 1. d4 {[%emt 0:04:57]} Nf6 {[%emt 0:00:35]} 2. c4 {[%emt 0:00:15][%cal Bc2c4,Bc4b5][%mdl 32]} c5 {[%emt 0:00:02]} 3. d5 {[%emt 0:00:37]} b5 {[%emt 0:00:02]} 4. cxb5 {[%emt 0:00:09]} a6 {[%emt 0:00:03]} 5. bxa6 {[%emt 0:00:08]} g6 {[%emt 0:00:03][%cal Of8g7]} 6. Nc3 {[%emt 0:00:08] A58: Benko/Volga Gambit: Lines with 5 bxa6.} Bg7 {[%emt 0:00:02][%cal Oe8g8]} 7. e4 {[%emt 0:00:51]} O-O {[%emt 0:00:05][%cal Oe7e6]} 8. a7 {[%emt 0:01:52] White is slightly better.} Rxa7 {[%emt 0:00:04]} 9. Nf3 {[%emt 0:00:08]} e6 {[%emt 0:00:03]} 10. Be2 {[%emt 0:00:06]} exd5 {[%emt 0:00:03]} 11. exd5 {[%emt 0:00:07]} d6 {[%emt 0:00:05]} 12. O-O {[%emt 0:00:35]} Na6 {[%emt 0:00:01]} 13. Nb5 {[%emt 0:02:30]} Rd7 {[%emt 0:00:14]} 14. Bg5 {[%emt 0:03:36]} Bb7 {[%emt 0:02:54]} 15. Bc4 {[%emt 0:00:19]} Qa8 {[%emt 0:01:53][%cal Rf6d5]} 16. Bxf6 {[%emt 0:07:27]} Bxf6 {[%emt 0:00:02]} 17. Qd2 {[%emt 0:00:45]} Nc7 {[%emt 0:10:00]} 18. Nxc7 {[%emt 0:04:33]} Rxc7 {[%emt 0:00:03]} 19. Rac1 {[%emt 0:02:33] [#]} Re8 $146 {[%emt 0:06:38]} ({Predecessor:} 19... Ba6 20. b3 Re8 21. Bxa6 Qxa6 22. Rfe1 Rxe1+ 23. Rxe1 Ra7 24. a4 Rb7 25. h4 h5 {½-½ Starodubtsev,V (2323)-Volodarsky,Y (2363) RUS Peak/KS email 2018}) 20. Rfe1 {[%emt 0:05:18]} Rce7 {[%emt 0:03:11]} 21. Rxe7 {[%emt 0:15:18]} Rxe7 {[%emt 0:00:07]} 22. b3 {[%emt 0:04:16]} Kg7 {[%emt 0:03:05]} 23. h3 {[%emt 0:01:55][%cal Bh2h3,Bh3h4][%mdl 32]} Ba6 {[%emt 0:03:22]} 24. Bxa6 {[%emt 0:09:18]} Qxa6 {[%emt 0:00:02]} 25. Rc4 {[%emt 0:00:17]} Qa8 {[%emt 0:01:18]} 26. h4 {[%emt 0:13:50]} Ra7 {[%emt 0:05:38]} (26... h6 $142) 27. a4 $16 {[%emt 0:01:58]} h5 {[%emt 0:03:49]} 28. Qd3 {[%emt 0:05:16]} Rb7 {[%emt 0:00:55]} 29. Nd2 {[%emt 0:03:55]} (29. g3 $1 $18) 29... Bd4 {[%emt 0:02:54]} 30. Nf3 {[%emt 0:03:15]} Bf6 {[%emt 0:00:45]} 31. Nd2 {[%emt 0:00:01]} Bd4 $1 {[%emt 0:00:06]} 32. Rc1 {[%emt 0:07:04]} Re7 {[%emt 0:01:18] [#]} 33. Nf3 $1 {[%emt 0:00:33]} Qxd5 {[%emt 0:01:59][%cal Od4f2] Threatens to win with ...Bxf2+!} 34. Nxd4 {[%emt 0:00:31][%cal Oc1d1]} cxd4 {[%emt 0:00:05][%mdl 4096] Endgame KQR-KQR} 35. b4 {[%emt 0:02:47][%cal Bb3b4,Bb4b5,Bb5b6,Bb6b7][%mdl 32] b5 would be deadly.} Re4 $2 {[%emt 0:01:51][%mdl 8192] This move loses the game for Black.} (35... Qe4 $16 {is tougher.} 36. Qxe4 Rxe4) 36. b5 $18 {[%emt 0:00:23]} Rxh4 {[%emt 0:00:12] [#]} (36... Qf5 $142 37. Rf1 Rf4 38. Qxf5 gxf5) 37. b6 $1 {[%emt 0:00:30]} Rg4 {[%emt 0:00:38][%csl Gg4][%cal Rd5g2]} 38. f3 {[%emt 0:00:49] Active counter play!} Rg5 {[%emt 0:05:37]} 39. Rb1 {[%emt 0:00:18]} Qa2 {[%emt 0:02:50][%csl Gg5][%cal Ra2g2]} 40. Qxd4+ {[%emt 0:00:17]} ({Don't go for} 40. g4 $2 hxg4 41. Rb5 (41. Qxd4+ $2 {too greedy.} f6 $19) 41... Rxb5 42. axb5 gxf3 43. Qxf3 Qa5 $19) 40... Kh7 {[%emt 0:00:26]} 41. Qb2 {[%emt 0:07:36]} Qxa4 {[%emt 0:00:25]} 42. b7 {[%emt 0:00:01] White mates.} Qa7+ {[%emt 0:00:02]} 43. Kh1 {[%emt 0:00:12]} Qb8 {[%emt 0:00:05]} 44. Ra1 {[%emt 0:00:07]} Re5 {[%emt 0:04:58]} 45. Ra8 {[%emt 0:00:09]} Re2 {[%emt 0:00:04]} 46. Qf6 {[%emt 0:00:54]} Qxb7 {[%emt 0:01:20]} 47. Rh8# {[%emt 0:00:03] Weighted Error Value: White=0.08 (flawless) /Black=0.37} 1-0